[Event "Titled Tuesday Blitz May 30 Early 2023"]
[White "Sargissyan, Sargis"]
[Black "Lakshmi C"]
[WhiteFideId "13303210"]
[BlackFideId "25035347"]
[WhiteElo "2109"]
[BlackElo "1942"]
[Result "1-0"]
[Round "04"]
[TimeControl "180+2"]
[Date "2023.05.30"]
[WhiteClock "0:00:14"]
[BlackClock "0:00:00"]

1. e4 {[%clk 0:02:54]}  b6 {[%clk 0:02:39]} 2. d4 {[%clk 0:02:52]}  Bb7 {[%clk 0:02:38]} 3. Bd3 {[%clk 0:02:53]}  d6 {[%clk 0:02:37]} 4. Nf3 {[%clk 0:02:53]}  Nd7 {[%clk 0:02:36]} 5. O-O {[%clk 0:02:53]}  e5 {[%clk 0:02:36]} 6. Re1 {[%clk 0:02:45]}  Qe7 {[%clk 0:02:34]} 7. Nc3 {[%clk 0:02:42]}  c6 {[%clk 0:02:11]} 8. a4 {[%clk 0:02:21]}  a5 {[%clk 0:02:09]} 9. d5 {[%clk 0:02:19]}  Nc5 {[%clk 0:01:56]} 10. dxc6 {[%clk 0:02:06]}  Bxc6 {[%clk 0:01:56]} 11. Nd5 {[%clk 0:02:05]}  Qb7 {[%clk 0:01:53]} 12. Bb5 {[%clk 0:01:45]}  Ne7 {[%clk 0:01:23]} 13. Bg5 {[%clk 0:01:32]}  Bxb5 {[%clk 0:00:28]} 14. axb5 {[%clk 0:01:25]}  Nxd5 {[%clk 0:00:28]} 15. exd5 {[%clk 0:01:24]}  f6 {[%clk 0:00:26]} 16. Bc1 {[%clk 0:00:50]}  Be7 {[%clk 0:00:18]} 17. Be3 {[%clk 0:00:37]}  O-O {[%clk 0:00:16]} 18. Bxc5 {[%clk 0:00:37]}  bxc5 {[%clk 0:00:15]} 19. c4 {[%clk 0:00:36]}  f5 {[%clk 0:00:13]} 20. Qd2 {[%clk 0:00:32]}  e4 {[%clk 0:00:10]} 21. Ng5 {[%clk 0:00:32]}  Bxg5 {[%clk 0:00:09]} 22. Qxg5 {[%clk 0:00:32]}  Qf7 {[%clk 0:00:06]} 23. Ra3 {[%clk 0:00:28]}  h6 {[%clk 0:00:03]} 24. Qf4 {[%clk 0:00:27]}  Qf6 {[%clk 0:00:02]} 25. h4 {[%clk 0:00:20]}  g5 {[%clk 0:00:03]} 26. hxg5 {[%clk 0:00:19]}  hxg5 {[%clk 0:00:03]} 27. Qh2 {[%clk 0:00:18]}  Rfe8 {[%clk 0:00:03]} 28. Rh3 {[%clk 0:00:17]}  f4 {[%clk 0:00:02]} 29. Rh6 {[%clk 0:00:17]}  Qg7 {[%clk 0:00:03]} 30. Qh5 {[%clk 0:00:15]}  e3 {[%clk 0:00:03]} 31. Rg6 {[%clk 0:00:14]}  exf2+ {[%clk 0:00:00]} 32. Kxf2 {[%clk 0:00:14]} 1-0


[Site "https://www.chess.com"]

[Event "Titled Tuesday Blitz May 30 Early 2023"]
[White "Kaganskiy, Gleb"]
[Black "dDobravcan"]
[WhiteFideId "4132025"]
[WhiteElo "2165"]
[BlackElo "2111"]
[Result "1-0"]
[Round "04"]
[TimeControl "180+2"]
[Date "2023.05.30"]
[WhiteClock "0:00:40"]
[BlackClock "0:00:07"]

1. e4 {[%clk 0:02:54]}  d6 {[%clk 0:02:57]} 2. d4 {[%clk 0:02:53]}  Nf6 {[%clk 0:02:58]} 3. Nc3 {[%clk 0:02:53]}  c6 {[%clk 0:02:58]} 4. Nf3 {[%clk 0:02:51]}  Bg4 {[%clk 0:02:56]} 5. Be3 {[%clk 0:02:48]}  e6 {[%clk 0:02:54]} 6. Be2 {[%clk 0:02:45]}  d5 {[%clk 0:02:53]} 7. e5 {[%clk 0:02:44]}  Nfd7 {[%clk 0:02:52]} 8. h3 {[%clk 0:02:43]}  Bh5 {[%clk 0:02:50]} 9. g4 {[%clk 0:02:41]}  Bg6 {[%clk 0:02:49]} 10. h4 {[%clk 0:02:41]}  h5 {[%clk 0:02:41]} 11. Ng5 {[%clk 0:02:40]}  hxg4 {[%clk 0:02:28]} 12. Bxg4 {[%clk 0:02:39]}  c5 {[%clk 0:02:27]} 13. h5 {[%clk 0:02:24]}  Nc6 {[%clk 0:02:21]} 14. Qf3 {[%clk 0:02:14]}  cxd4 {[%clk 0:02:10]} 15. hxg6 {[%clk 0:02:12]}  Rxh1+ {[%clk 0:02:09]} 16. Ke2 {[%clk 0:02:06]}  Ndxe5 {[%clk 0:01:44]} 17. gxf7+ {[%clk 0:02:00]}  Ke7 {[%clk 0:01:31]} 18. Qxh1 {[%clk 0:01:58]}  Nxg4 {[%clk 0:01:24]} 19. Qh4 {[%clk 0:01:53]}  Nxe3 {[%clk 0:00:56]} 20. fxe3 {[%clk 0:01:36]}  dxc3 {[%clk 0:00:54]} 21. bxc3 {[%clk 0:01:27]}  Qb6 {[%clk 0:00:41]} 22. Rd1 {[%clk 0:00:50]}  Ne5 {[%clk 0:00:24]} 23. Nf3+ {[%clk 0:00:47]}  Kxf7 {[%clk 0:00:17]} 24. Nxe5+ {[%clk 0:00:46]}  Kg8 {[%clk 0:00:18]} 25. Rh1 {[%clk 0:00:42]}  Bd6 {[%clk 0:00:07]} 26. Qh8# {[%clk 0:00:40]} 1-0


[Site "https://www.chess.com"]

[Event "Titled Tuesday Blitz May 30 Early 2023"]
[White "Ziatdinov, Raset"]
[Black "Horokoskii"]
[WhiteFideId "2015323"]
[WhiteElo "2220"]
[BlackElo "2108"]
[Result "1-0"]
[Round "04"]
[TimeControl "180+2"]
[Date "2023.05.30"]
[WhiteClock "0:00:15"]
[BlackClock "0:00:01"]

1. e4 {[%clk 0:02:31]}  e6 {[%clk 0:02:56]} 2. d4 {[%clk 0:02:31]}  d5 {[%clk 0:02:56]} 3. Nc3 {[%clk 0:02:32]}  Nf6 {[%clk 0:02:56]} 4. e5 {[%clk 0:02:33]}  Nfd7 {[%clk 0:02:56]} 5. f4 {[%clk 0:02:33]}  c5 {[%clk 0:02:56]} 6. Nf3 {[%clk 0:02:34]}  Nc6 {[%clk 0:02:57]} 7. Be3 {[%clk 0:02:35]}  a6 {[%clk 0:02:57]} 8. Qd2 {[%clk 0:02:35]}  b5 {[%clk 0:02:57]} 9. a3 {[%clk 0:02:34]}  Qa5 {[%clk 0:02:56]} 10. Be2 {[%clk 0:02:33]}  b4 {[%clk 0:02:45]} 11. Nd1 {[%clk 0:02:03]}  Qb6 {[%clk 0:02:45]} 12. axb4 {[%clk 0:01:55]}  cxb4 {[%clk 0:02:38]} 13. Nf2 {[%clk 0:01:49]}  a5 {[%clk 0:02:34]} 14. O-O {[%clk 0:01:43]}  Ba6 {[%clk 0:02:35]} 15. c3 {[%clk 0:01:40]}  Bxe2 {[%clk 0:02:29]} 16. Qxe2 {[%clk 0:01:39]}  Be7 {[%clk 0:02:30]} 17. Nd3 {[%clk 0:01:38]}  O-O {[%clk 0:02:26]} 18. Rfb1 {[%clk 0:01:33]}  Rfb8 {[%clk 0:02:21]} 19. g4 {[%clk 0:01:21]}  bxc3 {[%clk 0:02:14]} 20. bxc3 {[%clk 0:01:18]}  Qxb1+ {[%clk 0:02:13]} 21. Rxb1 {[%clk 0:01:19]}  Rxb1+ {[%clk 0:02:13]} 22. Kg2 {[%clk 0:01:20]}  a4 {[%clk 0:02:09]} 23. Nc1 {[%clk 0:01:16]}  a3 {[%clk 0:02:06]} 24. f5 {[%clk 0:00:40]}  Nb6 {[%clk 0:01:56]} 25. Qd3 {[%clk 0:00:36]}  Rb2+ {[%clk 0:01:51]} 26. Kg3 {[%clk 0:00:34]}  Nc4 {[%clk 0:01:49]} 27. fxe6 {[%clk 0:00:28]}  fxe6 {[%clk 0:01:46]} 28. Bf4 {[%clk 0:00:29]}  Rf8 {[%clk 0:01:35]} 29. g5 {[%clk 0:00:27]}  a2 {[%clk 0:01:29]} 30. Nxa2 {[%clk 0:00:26]}  Rxa2 {[%clk 0:01:30]} 31. Qb1 {[%clk 0:00:24]}  Rb2 {[%clk 0:01:28]} 32. Qd1 {[%clk 0:00:24]}  Ra8 {[%clk 0:01:08]} 33. g6 {[%clk 0:00:24]}  hxg6 {[%clk 0:01:04]} 34. Qd3 {[%clk 0:00:24]}  Kh7 {[%clk 0:00:57]} 35. Bc1 {[%clk 0:00:22]}  Rba2 {[%clk 0:00:47]} 36. Qb1 {[%clk 0:00:20]}  Bf8 {[%clk 0:00:34]} 37. Ng5+ {[%clk 0:00:18]}  Kh8 {[%clk 0:00:28]} 38. Qxg6 {[%clk 0:00:15]}  Rxh2 {[%clk 0:00:07]} 39. Kxh2 {[%clk 0:00:15]}  Ra2+ {[%clk 0:00:01]} 40. Kg3 {[%clk 0:00:15]} 1-0


[Site "https://www.chess.com"]

[Event "Titled Tuesday Blitz May 30 Early 2023"]
[White "Mikhaylova, Irina"]
[Black "Winkels, Marcel"]
[WhiteFideId "4109040"]
[BlackFideId "1003887"]
[WhiteElo "1975"]
[BlackElo "1900"]
[Result "1-0"]
[Round "04"]
[TimeControl "180+2"]
[Date "2023.05.30"]
[WhiteClock "0:00:10"]
[BlackClock "0:00:07"]

1. Nf3 {[%clk 0:02:59]}  Nf6 {[%clk 0:02:58]} 2. c4 {[%clk 0:02:59]}  g6 {[%clk 0:02:57]} 3. Nc3 {[%clk 0:03:00]}  Bg7 {[%clk 0:02:56]} 4. e4 {[%clk 0:03:00]}  d6 {[%clk 0:02:47]} 5. d4 {[%clk 0:03:00]}  O-O {[%clk 0:02:47]} 6. Be2 {[%clk 0:03:00]}  e5 {[%clk 0:02:47]} 7. dxe5 {[%clk 0:03:01]}  dxe5 {[%clk 0:02:46]} 8. Qxd8 {[%clk 0:03:01]}  Rxd8 {[%clk 0:02:46]} 9. Bg5 {[%clk 0:03:02]}  c6 {[%clk 0:02:46]} 10. Nxe5 {[%clk 0:03:02]}  Re8 {[%clk 0:02:46]} 11. O-O-O {[%clk 0:03:03]}  Nxe4 {[%clk 0:02:28]} 12. Nxe4 {[%clk 0:03:02]}  Bxe5 {[%clk 0:02:28]} 13. Bf3 {[%clk 0:02:59]}  Bf5 {[%clk 0:02:16]} 14. Nd6 {[%clk 0:02:36]}  Bxd6 {[%clk 0:02:10]} 15. Rxd6 {[%clk 0:02:26]}  Be6 {[%clk 0:02:08]} 16. b3 {[%clk 0:02:23]}  Na6 {[%clk 0:02:03]} 17. Rhd1 {[%clk 0:02:21]}  Kg7 {[%clk 0:01:54]} 18. h4 {[%clk 0:02:19]}  h6 {[%clk 0:01:53]} 19. Bd2 {[%clk 0:02:18]}  Nc5 {[%clk 0:01:51]} 20. Bc3+ {[%clk 0:02:07]}  Kh7 {[%clk 0:01:46]} 21. Bb4 {[%clk 0:01:59]}  Na6 {[%clk 0:01:44]} 22. Ba3 {[%clk 0:01:42]}  Nc7 {[%clk 0:01:32]} 23. Bb2 {[%clk 0:01:33]}  a5 {[%clk 0:01:31]} 24. Bf6 {[%clk 0:01:26]}  Rec8 {[%clk 0:01:22]} 25. g4 {[%clk 0:01:11]}  Ne8 {[%clk 0:01:22]} 26. Be5 {[%clk 0:01:08]}  Nxd6 {[%clk 0:01:21]} 27. Bxd6 {[%clk 0:01:08]}  b5 {[%clk 0:01:17]} 28. c5 {[%clk 0:01:08]}  b4 {[%clk 0:01:15]} 29. Rd4 {[%clk 0:00:40]}  Re8 {[%clk 0:01:10]} 30. Bxc6 {[%clk 0:00:37]}  a4 {[%clk 0:01:06]} 31. Bxe8 {[%clk 0:00:32]}  Rxe8 {[%clk 0:01:05]} 32. Rxb4 {[%clk 0:00:32]}  axb3 {[%clk 0:01:05]} 33. axb3 {[%clk 0:00:32]}  Bd5 {[%clk 0:01:02]} 34. Kb2 {[%clk 0:00:31]}  Re2+ {[%clk 0:01:00]} 35. Kc3 {[%clk 0:00:32]}  Rxf2 {[%clk 0:00:59]} 36. Rf4 {[%clk 0:00:30]}  Re2 {[%clk 0:00:48]} 37. b4 {[%clk 0:00:24]}  Bc6 {[%clk 0:00:45]} 38. Rxf7+ {[%clk 0:00:22]}  Kg8 {[%clk 0:00:44]} 39. Rc7 {[%clk 0:00:22]}  Bb5 {[%clk 0:00:43]} 40. c6 {[%clk 0:00:20]}  Re3+ {[%clk 0:00:39]} 41. Kd4 {[%clk 0:00:20]}  Re1 {[%clk 0:00:38]} 42. Kc5 {[%clk 0:00:20]}  Ba4 {[%clk 0:00:36]} 43. b5 {[%clk 0:00:20]}  Rc1+ {[%clk 0:00:35]} 44. Kb6 {[%clk 0:00:20]}  Rb1 {[%clk 0:00:35]} 45. Ka5 {[%clk 0:00:20]}  Bxb5 {[%clk 0:00:34]} 46. Rc8+ {[%clk 0:00:20]}  Kf7 {[%clk 0:00:32]} 47. c7 {[%clk 0:00:21]}  Bd7 {[%clk 0:00:27]} 48. Rd8 {[%clk 0:00:19]}  Ke6 {[%clk 0:00:26]} 49. Bb4 {[%clk 0:00:16]}  Rc1 {[%clk 0:00:24]} 50. Kb6 {[%clk 0:00:16]}  Rc6+ {[%clk 0:00:23]} 51. Kb7 {[%clk 0:00:14]}  Rc4 {[%clk 0:00:23]} 52. Ba5 {[%clk 0:00:14]}  Rxg4 {[%clk 0:00:07]} 53. Rxd7 {[%clk 0:00:10]} 1-0


[Site "https://www.chess.com"]

[Event "Titled Tuesday Blitz May 30 Early 2023"]
[White "Jiganchine, Roman"]
[Black "Dominguez Rincon, Miller Duvan"]
[WhiteFideId "2603667"]
[BlackFideId "4406583"]
[WhiteElo "2291"]
[BlackElo "2013"]
[Result "1-0"]
[Round "04"]
[TimeControl "180+2"]
[Date "2023.05.30"]
[WhiteClock "0:00:51"]
[BlackClock "0:00:00"]

1. e4 {[%clk 0:03:00]}  e5 {[%clk 0:02:59]} 2. Nf3 {[%clk 0:02:59]}  Nc6 {[%clk 0:02:59]} 3. Nc3 {[%clk 0:02:59]}  Nf6 {[%clk 0:02:58]} 4. Bb5 {[%clk 0:02:58]}  Bb4 {[%clk 0:02:57]} 5. O-O {[%clk 0:02:57]}  O-O {[%clk 0:02:53]} 6. Bxc6 {[%clk 0:02:56]}  dxc6 {[%clk 0:02:52]} 7. d3 {[%clk 0:02:56]}  Bxc3 {[%clk 0:02:47]} 8. bxc3 {[%clk 0:02:57]}  Re8 {[%clk 0:02:46]} 9. h3 {[%clk 0:02:43]}  h6 {[%clk 0:02:43]} 10. Nh2 {[%clk 0:02:42]}  c5 {[%clk 0:02:39]} 11. f4 {[%clk 0:02:40]}  Qd6 {[%clk 0:02:13]} 12. Kh1 {[%clk 0:02:37]}  b5 {[%clk 0:01:59]} 13. Rb1 {[%clk 0:02:34]}  Rb8 {[%clk 0:01:48]} 14. Qe1 {[%clk 0:02:25]}  Be6 {[%clk 0:01:41]} 15. fxe5 {[%clk 0:02:20]}  Qxe5 {[%clk 0:01:37]} 16. Bf4 {[%clk 0:02:20]}  Qh5 {[%clk 0:01:34]} 17. Bxc7 {[%clk 0:02:15]}  Rbc8 {[%clk 0:01:33]} 18. Bf4 {[%clk 0:02:02]}  a6 {[%clk 0:01:18]} 19. a3 {[%clk 0:02:00]}  Bd5 {[%clk 0:00:27]} 20. Qg3 {[%clk 0:01:54]}  Bc6 {[%clk 0:00:22]} 21. Bd2 {[%clk 0:01:45]}  Kh8 {[%clk 0:00:18]} 22. Rf5 {[%clk 0:01:42]}  Qg6 {[%clk 0:00:16]} 23. Qxg6 {[%clk 0:01:39]}  fxg6 {[%clk 0:00:17]} 24. Rxc5 {[%clk 0:01:39]}  Bb7 {[%clk 0:00:14]} 25. Rxc8 {[%clk 0:01:33]}  Rxc8 {[%clk 0:00:15]} 26. Nf3 {[%clk 0:01:29]}  Re8 {[%clk 0:00:12]} 27. Kh2 {[%clk 0:01:27]}  Bc6 {[%clk 0:00:11]} 28. Nd4 {[%clk 0:01:21]}  Bd7 {[%clk 0:00:11]} 29. Bf4 {[%clk 0:01:19]}  Kg8 {[%clk 0:00:10]} 30. Nb3 {[%clk 0:01:16]}  Kf7 {[%clk 0:00:09]} 31. Nc5 {[%clk 0:01:15]}  Bc8 {[%clk 0:00:09]} 32. a4 {[%clk 0:01:11]}  Ke7 {[%clk 0:00:09]} 33. axb5 {[%clk 0:01:11]}  axb5 {[%clk 0:00:08]} 34. Rxb5 {[%clk 0:01:10]}  g5 {[%clk 0:00:09]} 35. Bg3 {[%clk 0:01:06]}  Nh5 {[%clk 0:00:08]} 36. Bb8 {[%clk 0:01:04]}  Kd8 {[%clk 0:00:07]} 37. Nb3 {[%clk 0:00:59]}  Nf6 {[%clk 0:00:03]} 38. Rb4 {[%clk 0:00:54]}  Ke7 {[%clk 0:00:02]} 39. Nd4 {[%clk 0:00:53]}  Kf7 {[%clk 0:00:01]} 40. Bd6 {[%clk 0:00:51]}  Bd7 {[%clk 0:00:00]} 41. Bg3 {[%clk 0:00:51]} 1-0


[Site "https://www.chess.com"]

[Event "Titled Tuesday Blitz May 30 Early 2023"]
[White "Zaichenko, Daria"]
[Black "Torres Dominguez, David"]
[WhiteFideId "4197453"]
[BlackFideId "2220857"]
[WhiteElo "2039"]
[BlackElo "1999"]
[Result "1-0"]
[Round "04"]
[TimeControl "180+2"]
[Date "2023.05.30"]
[WhiteClock "0:00:29"]
[BlackClock "0:00:00"]

1. e4 {[%clk 0:02:55]}  e5 {[%clk 0:03:00]} 2. Nf3 {[%clk 0:02:54]}  Nc6 {[%clk 0:03:01]} 3. Bc4 {[%clk 0:02:54]}  Bc5 {[%clk 0:03:00]} 4. d3 {[%clk 0:02:54]}  Nf6 {[%clk 0:02:58]} 5. c3 {[%clk 0:02:54]}  d6 {[%clk 0:02:58]} 6. Bb3 {[%clk 0:02:53]}  a6 {[%clk 0:02:58]} 7. O-O {[%clk 0:02:52]}  Ba7 {[%clk 0:02:58]} 8. Nbd2 {[%clk 0:02:53]}  h6 {[%clk 0:02:53]} 9. Re1 {[%clk 0:02:52]}  g5 {[%clk 0:02:45]} 10. Nf1 {[%clk 0:02:49]}  g4 {[%clk 0:02:25]} 11. N3d2 {[%clk 0:02:49]}  h5 {[%clk 0:02:11]} 12. Ne3 {[%clk 0:02:44]}  h4 {[%clk 0:01:56]} 13. f3 {[%clk 0:02:31]}  g3 {[%clk 0:01:31]} 14. h3 {[%clk 0:02:30]}  Nh5 {[%clk 0:01:28]} 15. Nf1 {[%clk 0:02:13]}  Nf4 {[%clk 0:01:23]} 16. Kh1 {[%clk 0:01:58]}  Bxh3 {[%clk 0:01:16]} 17. gxh3 {[%clk 0:01:57]}  Nxh3 {[%clk 0:01:16]} 18. Qe2 {[%clk 0:01:53]}  Nf2+ {[%clk 0:01:13]} 19. Kg1 {[%clk 0:01:49]}  h3 {[%clk 0:01:14]} 20. Nxg3 {[%clk 0:01:50]}  h2+ {[%clk 0:01:04]} 21. Kxf2 {[%clk 0:01:44]}  Qh4 {[%clk 0:00:47]} 22. Qf1 {[%clk 0:01:20]}  Rg8 {[%clk 0:00:46]} 23. Qg2 {[%clk 0:01:20]}  O-O-O {[%clk 0:00:37]} 24. Rh1 {[%clk 0:01:16]}  f5 {[%clk 0:00:32]} 25. Be6+ {[%clk 0:01:09]}  Kb8 {[%clk 0:00:32]} 26. Bxf5 {[%clk 0:01:09]}  d5 {[%clk 0:00:30]} 27. Rxh2 {[%clk 0:00:55]}  Qg5 {[%clk 0:00:30]} 28. Rh5 {[%clk 0:00:42]}  Qg7 {[%clk 0:00:28]} 29. Bd2 {[%clk 0:00:37]}  dxe4 {[%clk 0:00:28]} 30. Bxe4 {[%clk 0:00:37]}  Qf7 {[%clk 0:00:19]} 31. Rah1 {[%clk 0:00:34]}  Rdf8 {[%clk 0:00:00]} 32. Qh3 {[%clk 0:00:29]} 1-0


[Site "https://www.chess.com"]

[Event "Titled Tuesday Blitz May 30 Early 2023"]
[White "Pg, Mohd Omar Ak Hira"]
[Black "Maluco_do_Natal_00"]
[WhiteFideId "10500103"]
[WhiteElo "2167"]
[BlackElo "2024"]
[Result "1-0"]
[Round "04"]
[TimeControl "180+2"]
[Date "2023.05.30"]
[WhiteClock "0:00:33"]
[BlackClock "0:00:04"]

1. e4 {[%clk 0:03:00]}  c5 {[%clk 0:02:59]} 2. Nf3 {[%clk 0:03:00]}  Nc6 {[%clk 0:02:59]} 3. d4 {[%clk 0:03:01]}  cxd4 {[%clk 0:03:00]} 4. Nxd4 {[%clk 0:03:01]}  Nf6 {[%clk 0:03:01]} 5. Nc3 {[%clk 0:03:01]}  e5 {[%clk 0:03:01]} 6. Ndb5 {[%clk 0:02:58]}  d6 {[%clk 0:03:01]} 7. Be2 {[%clk 0:02:56]}  a6 {[%clk 0:02:58]} 8. Na3 {[%clk 0:02:56]}  b5 {[%clk 0:02:55]} 9. Nd5 {[%clk 0:02:45]}  Be7 {[%clk 0:02:54]} 10. Nxf6+ {[%clk 0:02:31]}  Bxf6 {[%clk 0:02:52]} 11. c3 {[%clk 0:02:29]}  Be6 {[%clk 0:02:46]} 12. Bf3 {[%clk 0:02:26]}  Ne7 {[%clk 0:02:40]} 13. O-O {[%clk 0:02:18]}  d5 {[%clk 0:02:40]} 14. Nc2 {[%clk 0:02:12]}  dxe4 {[%clk 0:02:35]} 15. Bxe4 {[%clk 0:02:11]}  Bd5 {[%clk 0:02:31]} 16. Qe2 {[%clk 0:02:03]}  Bxe4 {[%clk 0:02:27]} 17. Qxe4 {[%clk 0:02:03]}  O-O {[%clk 0:02:26]} 18. Ne3 {[%clk 0:01:54]}  Qc7 {[%clk 0:01:58]} 19. Ng4 {[%clk 0:01:48]}  Qd6 {[%clk 0:01:43]} 20. Be3 {[%clk 0:01:33]}  Rad8 {[%clk 0:01:25]} 21. h3 {[%clk 0:01:25]}  Qe6 {[%clk 0:01:11]} 22. Bc5 {[%clk 0:01:24]}  Rfe8 {[%clk 0:01:07]} 23. Bxe7 {[%clk 0:01:17]}  Rxe7 {[%clk 0:00:58]} 24. a4 {[%clk 0:00:58]}  Bg5 {[%clk 0:00:48]} 25. Qb4 {[%clk 0:00:47]}  f5 {[%clk 0:00:38]} 26. Nh2 {[%clk 0:00:47]}  Rd5 {[%clk 0:00:20]} 27. Nf3 {[%clk 0:00:44]}  Bf6 {[%clk 0:00:18]} 28. axb5 {[%clk 0:00:42]}  Rxb5 {[%clk 0:00:16]} 29. Qa3 {[%clk 0:00:42]}  Rb6 {[%clk 0:00:14]} 30. Rfe1 {[%clk 0:00:40]}  Kf7 {[%clk 0:00:14]} 31. Rad1 {[%clk 0:00:39]}  h6 {[%clk 0:00:13]} 32. Rd8 {[%clk 0:00:39]}  Kg6 {[%clk 0:00:11]} 33. Nd4 {[%clk 0:00:36]}  Qd6 {[%clk 0:00:10]} 34. Rxd6 {[%clk 0:00:34]}  exd4 {[%clk 0:00:04]} 35. Rxe7 {[%clk 0:00:33]} 1-0


[Site "https://www.chess.com"]

[Event "Titled Tuesday Blitz May 30 Early 2023"]
[White "Borodavkin, Anatoly"]
[Black "Castillo Pena, Patricia Evarista"]
[WhiteFideId "14150662"]
[BlackFideId "6412106"]
[WhiteElo "1991"]
[BlackElo "1919"]
[Result "1-0"]
[Round "04"]
[TimeControl "180+2"]
[Date "2023.05.30"]
[WhiteClock "0:00:27"]
[BlackClock "0:00:11"]

1. e4 {[%clk 0:02:29]}  c5 {[%clk 0:02:59]} 2. Nc3 {[%clk 0:02:27]}  Nc6 {[%clk 0:02:57]} 3. g3 {[%clk 0:02:27]}  g6 {[%clk 0:02:56]} 4. Bg2 {[%clk 0:02:28]}  Bg7 {[%clk 0:02:57]} 5. d3 {[%clk 0:02:28]}  d6 {[%clk 0:02:56]} 6. f4 {[%clk 0:02:27]}  Nf6 {[%clk 0:02:56]} 7. Nf3 {[%clk 0:02:26]}  O-O {[%clk 0:02:56]} 8. O-O {[%clk 0:02:27]}  Rb8 {[%clk 0:02:56]} 9. h3 {[%clk 0:02:26]}  b5 {[%clk 0:02:56]} 10. Be3 {[%clk 0:02:27]}  a5 {[%clk 0:02:54]} 11. e5 {[%clk 0:02:19]}  dxe5 {[%clk 0:02:50]} 12. fxe5 {[%clk 0:02:19]}  Nd7 {[%clk 0:02:44]} 13. e6 {[%clk 0:02:12]}  fxe6 {[%clk 0:02:41]} 14. Ng5 {[%clk 0:02:00]}  Nd4 {[%clk 0:02:38]} 15. Nce4 {[%clk 0:01:51]}  Rxf1+ {[%clk 0:02:14]} 16. Qxf1 {[%clk 0:01:43]}  Nxc2 {[%clk 0:02:02]} 17. Qf7+ {[%clk 0:01:37]}  Kh8 {[%clk 0:02:01]} 18. Qxe6 {[%clk 0:01:27]}  Ne5 {[%clk 0:01:46]} 19. Qxe5 {[%clk 0:01:17]}  Bxe5 {[%clk 0:01:40]} 20. Nf7+ {[%clk 0:01:17]}  Kg7 {[%clk 0:01:36]} 21. Nxd8 {[%clk 0:01:16]}  Nxa1 {[%clk 0:01:30]} 22. Nc6 {[%clk 0:01:15]}  Bxg3 {[%clk 0:01:28]} 23. Nxb8 {[%clk 0:01:14]}  Bxb8 {[%clk 0:01:28]} 24. Bxc5 {[%clk 0:01:14]}  Kf7 {[%clk 0:01:24]} 25. Nc3 {[%clk 0:01:09]}  b4 {[%clk 0:01:13]} 26. Nd5 {[%clk 0:01:09]}  Bd6 {[%clk 0:01:11]} 27. Bxd6 {[%clk 0:01:08]}  exd6 {[%clk 0:01:11]} 28. Ne3 {[%clk 0:01:07]}  Bf5 {[%clk 0:01:09]} 29. Bf1 {[%clk 0:00:57]}  Ke6 {[%clk 0:01:03]} 30. Kf2 {[%clk 0:00:55]}  d5 {[%clk 0:01:04]} 31. Ke2 {[%clk 0:00:52]}  d4 {[%clk 0:01:03]} 32. Nc4 {[%clk 0:00:52]}  a4 {[%clk 0:00:59]} 33. Kd2 {[%clk 0:00:51]}  b3 {[%clk 0:00:55]} 34. a3 {[%clk 0:00:48]}  Nc2 {[%clk 0:00:54]} 35. Nb6 {[%clk 0:00:48]}  Ne3 {[%clk 0:00:51]} 36. Be2 {[%clk 0:00:47]}  Bxh3 {[%clk 0:00:47]} 37. Nxa4 {[%clk 0:00:48]}  Bg2 {[%clk 0:00:42]} 38. Nc5+ {[%clk 0:00:48]}  Kd6 {[%clk 0:00:42]} 39. Nxb3 {[%clk 0:00:48]}  h5 {[%clk 0:00:39]} 40. Nxd4 {[%clk 0:00:46]}  Nd5 {[%clk 0:00:33]} 41. Nf3 {[%clk 0:00:43]}  Nf4 {[%clk 0:00:29]} 42. Nh4 {[%clk 0:00:39]}  g5 {[%clk 0:00:27]} 43. Nxg2 {[%clk 0:00:38]}  Nxg2 {[%clk 0:00:27]} 44. Bxh5 {[%clk 0:00:38]}  Nf4 {[%clk 0:00:23]} 45. Bg4 {[%clk 0:00:38]}  Kd5 {[%clk 0:00:22]} 46. Kc3 {[%clk 0:00:37]}  Kc5 {[%clk 0:00:20]} 47. d4+ {[%clk 0:00:32]}  Kd5 {[%clk 0:00:19]} 48. Bf3+ {[%clk 0:00:32]}  Kd6 {[%clk 0:00:19]} 49. a4 {[%clk 0:00:32]}  Nd5+ {[%clk 0:00:16]} 50. Kc4 {[%clk 0:00:29]}  Ne3+ {[%clk 0:00:16]} 51. Kd3 {[%clk 0:00:28]}  Nd5 {[%clk 0:00:14]} 52. Bxd5 {[%clk 0:00:26]}  Kxd5 {[%clk 0:00:14]} 53. b4 {[%clk 0:00:27]}  g4 {[%clk 0:00:14]} 54. Ke3 {[%clk 0:00:27]}  g3 {[%clk 0:00:14]} 55. Kf3 {[%clk 0:00:28]}  Kxd4 {[%clk 0:00:14]} 56. Kxg3 {[%clk 0:00:27]}  Kc4 {[%clk 0:00:11]} 57. b5 {[%clk 0:00:27]} 1-0


[Site "https://www.chess.com"]

[Event "Titled Tuesday Blitz May 30 Early 2023"]
[White "Ahmadzada, Ahmad"]
[Black "Nihal Sarin"]
[WhiteFideId "13413007"]
[BlackFideId "25092340"]
[WhiteElo "2388"]
[BlackElo "2689"]
[Result "0-1"]
[Round "05"]
[TimeControl "180+2"]
[Date "2023.05.30"]
[WhiteClock "0:00:02"]
[BlackClock "0:01:23"]

1. Nf3 {[%clk 0:03:00]}  d5 {[%clk 0:02:56]} 2. g3 {[%clk 0:03:00]}  Nc6 {[%clk 0:02:54]} 3. d4 {[%clk 0:02:57]}  Bf5 {[%clk 0:02:53]} 4. Bg2 {[%clk 0:02:58]}  Nb4 {[%clk 0:02:54]} 5. Na3 {[%clk 0:02:57]}  e6 {[%clk 0:02:55]} 6. O-O {[%clk 0:02:56]}  Be7 {[%clk 0:02:53]} 7. c3 {[%clk 0:02:55]}  Nc6 {[%clk 0:02:53]} 8. Nc2 {[%clk 0:02:56]}  Nf6 {[%clk 0:02:51]} 9. Bf4 {[%clk 0:02:53]}  h6 {[%clk 0:02:51]} 10. Nce1 {[%clk 0:02:47]}  O-O {[%clk 0:02:51]} 11. Nd3 {[%clk 0:02:48]}  Bd6 {[%clk 0:02:51]} 12. Nfe5 {[%clk 0:02:45]}  Ne7 {[%clk 0:02:49]} 13. Qb3 {[%clk 0:02:38]}  b6 {[%clk 0:02:49]} 14. c4 {[%clk 0:02:35]}  c5 {[%clk 0:02:44]} 15. dxc5 {[%clk 0:02:03]}  bxc5 {[%clk 0:02:45]} 16. Rfd1 {[%clk 0:01:56]}  Rb8 {[%clk 0:02:38]} 17. Qa4 {[%clk 0:01:55]}  Qc7 {[%clk 0:02:36]} 18. h4 {[%clk 0:01:06]}  Bxd3 {[%clk 0:02:34]} 19. Nxd3 {[%clk 0:01:04]}  Bxf4 {[%clk 0:02:35]} 20. gxf4 {[%clk 0:00:54]}  Ng6 {[%clk 0:02:35]} 21. Rac1 {[%clk 0:00:45]}  Nxf4 {[%clk 0:02:30]} 22. Bf3 {[%clk 0:00:31]}  Nxd3 {[%clk 0:02:06]} 23. Rxd3 {[%clk 0:00:31]}  d4 {[%clk 0:02:07]} 24. e3 {[%clk 0:00:25]}  e5 {[%clk 0:02:02]} 25. Qc6 {[%clk 0:00:20]}  Qxc6 {[%clk 0:02:01]} 26. Bxc6 {[%clk 0:00:21]}  Rxb2 {[%clk 0:02:02]} 27. exd4 {[%clk 0:00:18]}  exd4 {[%clk 0:02:02]} 28. Ra3 {[%clk 0:00:17]}  Ng4 {[%clk 0:01:59]} 29. Rf1 {[%clk 0:00:15]}  Ne5 {[%clk 0:01:53]} 30. Bd5 {[%clk 0:00:15]}  Rc2 {[%clk 0:01:35]} 31. Rxa7 {[%clk 0:00:15]}  Nxc4 {[%clk 0:01:36]} 32. Re1 {[%clk 0:00:13]}  d3 {[%clk 0:01:26]} 33. Rxf7 {[%clk 0:00:03]}  Rxf7 {[%clk 0:01:24]} 34. Re8+ {[%clk 0:00:04]}  Kh7 {[%clk 0:01:25]} 35. Bxf7 {[%clk 0:00:04]}  d2 {[%clk 0:01:22]} 36. Bg8+ {[%clk 0:00:03]}  Kg6 {[%clk 0:01:22]} 37. Re6+ {[%clk 0:00:01]}  Kf5 {[%clk 0:01:23]} 38. Bh7+ {[%clk 0:00:01]}  Kxe6 {[%clk 0:01:24]} 39. Bxc2 {[%clk 0:00:01]}  Nb2 {[%clk 0:01:23]} 40. a4 {[%clk 0:00:02]}  d1=Q+ {[%clk 0:01:21]} 41. Bxd1 {[%clk 0:00:02]}  Nxd1 {[%clk 0:01:22]} 42. a5 {[%clk 0:00:02]}  Nc3 {[%clk 0:01:23]} 0-1


[Site "https://www.chess.com"]